[Event "Chinese Championship-B Women 2024"]
[Site "Liaocheng"]
[Date "2024.04.25"]
[Round "9.13"]
[White "Peng, Shiyang"]
[Black "Liu, Youyin"]
[Result "1/2-1/2"]
[ECO "A12"]
[WhiteElo "1661"]
[BlackElo "1840"]
[Annotator "NA RC"]
[PlyCount "85"]
[EventDate "2024.04.24"]
[EventType "swiss"]
[EventCountry "CHN"]
[SourceTitle "playchess.com"]
[Source "ChessBase"]
[SourceQuality "1"]
[TimeControl "5400+30"]

1. Nf3 {[%emt 0:00:03]} d5 {[%emt 0:00:10]} 2. c4 {[%emt 0:00:05]} c6 {[%emt 0:00:53]} 3. b3 {[%emt 0:00:21]} Bf5 {[%emt 0:04:25]} 4. Bb2 {[%emt 0:00:35]} Nd7 {[%emt 0:01:15]} 5. g3 {[%emt 0:00:20]} Ngf6 {[%emt 0:00:35]} 6. Bg2 {[%emt 0:00:15] A12: English Opening: 1...c6 with b3 by White.} Bxb1 {[%emt 0:04:36]} 7. Qxb1 {[%emt 0:01:04]} g6 {[%emt 0:00:46]} 8. O-O {[%emt 0:00:49]} Bg7 {[%emt 0:00:08]} 9. d3 {[%emt 0:01:36]} O-O {[%emt 0:00:21]} 10. Rd1 {[%emt 1:30:22]} Qa5 {[%emt 0:23:39]} 11. Qc2 {[%emt 0:00:00]} Rfe8 {[%emt 0:03:31]} 12. Bc3 {[%emt 0:00:00]} Qc7 {[%emt 0:02:15]} 13. cxd5 {[%emt 0:00:00]} cxd5 {[%emt 0:00:43]} 14. Qb2 {[%emt 0:00:00]} e5 {[%emt 0:02:57]} 15. Rac1 {[%emt 0:00:00]} Qd6 {[%emt 0:00:33]} 16. e3 {[%emt 0:00:00]} b5 {[%emt 0:05:47]} 17. a3 {[%emt 0:00:00]} a5 {[%emt 0:00:55]} 18. b4 {[%emt 0:00:00]} a4 {[%emt 0:01:16]} 19. Bh3 {[%emt 0:00:00]} h5 {[%emt 0:45:15]} 20. Bf1 {[%emt 0:00:00]} Rab8 {[%emt 0:00:00]} 21. d4 {[%emt 0:05:30]} e4 {[%emt 0:01:00]} 22. Ne5 {[%emt 0:00:30]} Nh7 {[%emt 0:00:30]} 23. Nxd7 {[%emt 0:00:00]} Qxd7 {[%emt 0:00:30]} 24. Be1 {[%emt 0:01:00]} Ng5 {[%emt 0:00:00]} 25. Qe2 Bf8 {[%emt 0:01:00]} 26. Bg2 {[%emt 0:00:00]} Qg4 {[%emt 0:00:00]} 27. Qxg4 {[%emt 0:00:00]} hxg4 {[%emt 0:01:00]} 28. Kf1 {[%emt 0:00:00]} Rec8 {[%emt 0:00:30]} 29. Ke2 {[%emt 0:00:00]} Nf3 {[%emt 0:00:00]} 30. h4 {[%emt 0:00:00]} g5 {[%emt 0:00:00]} 31. hxg5 {[%emt 0:00:00]} Nxg5 {[%emt 0:00:00]} 32. Bd2 {[%emt 0:00:00]} f5 {[%emt 0:00:00]} 33. Rxc8 {[%emt 0:00:00]} Rxc8 {[%emt 0:00:00]} 34. Rc1 {[%emt 0:00:00]} Rxc1 {[%emt 0:00:00]} 35. Bxc1 {[%emt 0:00:00]} Nf7 {[%emt 0:03:30]} 36. Bf1 {[%emt 0:00:00]} Nd6 {[%emt 0:00:00]} 37. Kd2 {[%emt 0:00:00]} Kf7 {[%emt 0:00:00]} 38. Kd1 {[%emt 0:07:00]} Ke6 {[%emt 0:00:00]} 39. Bd2 {[%emt 0:00:00]} Kd7 {[%emt 0:00:00]} 40. Bc3 {[%emt 0:00:00]} Kc6 {[%emt 0:00:00]} 41. Ke1 {[%emt 0:00:00]} Bg7 {[%emt 0:00:00]} 42. Kd2 {[%emt 0:00:00]} Bf6 {[%emt 0:00:00]} 43. Ke1 $15 {[%emt 0:00:00]} 1/2-1/2

[Event "Chinese Championship-B Women 2024"]
[Site "Liaocheng"]
[Date "2024.04.25"]
[Round "9.14"]
[White "Cui, Wen"]
[Black "Ji, Yueran"]
[Result "1-0"]
[ECO "B33"]
[WhiteElo "1825"]
[BlackElo "1660"]
[Annotator "NA RC"]
[PlyCount "73"]
[EventDate "2024.04.24"]
[EventType "swiss"]
[EventCountry "CHN"]
[SourceTitle "playchess.com"]
[Source "ChessBase"]
[SourceQuality "1"]
[TimeControl "5400+30"]

1. e4 {[%emt 0:00:04]} c5 {[%emt 0:00:09]} 2. Nf3 {[%emt 0:00:13]} Nc6 {[%emt 0:00:07]} 3. d4 {[%emt 0:00:14]} cxd4 {[%emt 0:00:13]} 4. Nxd4 {[%emt 0:00:10]} Nf6 {[%emt 0:00:06]} 5. Nc3 {[%emt 0:00:10]} e5 {[%emt 0:00:18]} 6. Ndb5 {[%emt 0:00:18]} d6 {[%emt 0:00:08]} 7. Nd5 {[%emt 0:00:17]} Nxd5 {[%emt 0:00:08]} 8. exd5 {[%emt 0:00:08]} Ne7 {[%emt 0:00:06]} 9. c4 {[%emt 0:00:38]} Ng6 {[%emt 0:01:52]} 10. Bd3 {[%emt 0:02:58]} Be7 {[%emt 0:01:28]} 11. O-O {[%emt 0:04:59]} O-O {[%emt 0:00:30] B33: Sicilian: Pelikan and Sveshnikov Variations.} 12. a4 {[%emt 0:04:44]} a6 {[%emt 0:00:24]} 13. Nc3 {[%emt 0:00:19]} f5 {[%emt 0:02:57]} 14. f3 {[%emt 0:04:28]} Bg5 {[%emt 0:08:01]} 15. Ne2 {[%emt 0:06:02]} Bd7 {[%emt 0:08:45]} 16. a5 {[%emt 0:03:07]} Bxc1 {[%emt 0:06:50]} 17. Qxc1 {[%emt 0:00:47]} Qe7 {[%emt 0:07:01]} 18. Qe3 {[%emt 0:06:19]} Rae8 {[%emt 0:05:49]} 19. Bc2 {[%emt 0:17:47]} e4 {[%emt 0:11:05]} 20. f4 {[%emt 0:07:58]} Qd8 {[%emt 0:09:03]} (20... Rc8 $14) 21. b4 {[%emt 0:08:59]} Qc7 {[%emt 0:03:09]} 22. Bb3 {[%emt 0:02:21]} Rb8 {[%emt 0:03:10]} 23. Qb6 {[%emt 0:03:01]} Qxb6+ {[%emt 0:03:54]} 24. axb6 {[%emt 0:00:08]} Rfc8 {[%emt 0:01:04]} 25. Rfc1 {[%emt 0:03:37]} Kf8 {[%emt 0:01:54]} 26. c5 {[%emt 0:02:34]} Bb5 {[%emt 0:02:43]} 27. Bc4 {[%emt 0:05:16]} Ne7 {[%emt 0:03:08]} 28. Bxb5 {[%emt 0:04:44]} axb5 {[%emt 0:00:08]} 29. Rd1 {[%emt 0:02:29]} dxc5 {[%emt 0:01:51]} 30. d6 {[%emt 0:00:15]} Ng6 {[%emt 0:01:09]} 31. d7 {[%emt 0:00:41]} Rd8 {[%emt 0:00:32]} 32. bxc5 {[%emt 0:00:13]} Ke7 {[%emt 0:01:25]} 33. Nd4 {[%emt 0:00:36]} Rxd7 {[%emt 0:05:00]} 34. c6 {[%emt 0:01:23]} Rd5 {[%emt 0:05:38]} 35. c7 {[%emt 0:00:30]} Rc8 {[%emt 0:01:01]} 36. Nc6+ {[%emt 0:01:13]} bxc6 $18 {[%emt 0:04:23]} (36... Kd6 $142 37. Na7 Ne7 38. Nxb5+ (38. Nxc8+ Nxc8 39. Rxd5+ Kxd5 $18) (38. Rxd5+ Kxd5 39. Kf2 h6 $18) 38... Kc5) 37. b7 {[%emt 0:00:38]} (37. Rxd5 $142 cxd5 38. b7) 1-0

[Event "Chinese Championship-B Women 2024"]
[Site "Liaocheng"]
[Date "2024.04.25"]
[Round "9.15"]
[White "He, Yi"]
[Black "Zhu, Zile"]
[Result "1/2-1/2"]
[ECO "C02"]
[WhiteElo "1636"]
[BlackElo "1819"]
[Annotator "NA RC"]
[PlyCount "97"]
[EventDate "2024.04.24"]
[EventType "swiss"]
[EventCountry "CHN"]
[SourceTitle "playchess.com"]
[Source "ChessBase"]
[SourceQuality "1"]
[TimeControl "5400+30"]

1. e4 {[%emt 0:00:02]} e6 {[%emt 0:00:03]} 2. d4 {[%emt 0:00:05]} d5 {[%emt 0:00:03]} 3. e5 {[%emt 0:00:04]} c5 {[%emt 0:00:05]} 4. c3 {[%emt 0:00:04]} Nc6 {[%emt 0:00:04]} 5. Nf3 {[%emt 0:00:05]} Bd7 {[%emt 0:00:04]} 6. Be2 {[%emt 0:00:07]} Nge7 {[%emt 0:00:07]} 7. a3 {[%emt 0:01:03]} c4 {[%emt 0:02:19] has lost popularity (7...cxd4). C02: French: Advance Variation.} 8. Nbd2 {[%emt 0:00:45]} b5 {[%emt 0:00:54]} 9. b4 $146 {[%emt 0:03:02]} ({Predecessor:} 9. Nf1 f6 10. Nh4 fxe5 11. dxe5 Qc7 12. f4 O-O-O 13. Nf3 Be8 14. Be3 Nf5 15. Bf2 {0-1 Ashvath,M (1681)-Saif,A (1870) Dubai op-B 23rd 2023 (8)}) 9... a5 {[%emt 0:01:54]} 10. Bb2 {[%emt 0:01:04]} Nc8 {[%emt 0:05:23]} 11. O-O {[%emt 0:06:33]} Nb6 {[%emt 0:00:33]} 12. Qc2 {[%emt 0:00:47]} f5 {[%emt 0:02:25]} 13. h4 {[%emt 0:05:43]} g6 {[%emt 0:03:16]} 14. g3 $1 {[%emt 0:01:43]} Qe7 {[%emt 0:02:57]} 15. Kg2 {[%emt 0:03:47]} O-O-O {[%emt 0:03:03]} 16. Rh1 $15 {[%emt 0:06:19]} ({Better is} 16. bxa5 $14 Na4 17. a6) 16... Qg7 {[%emt 0:05:43]} 17. Rag1 {[%emt 0:07:55]} ({Better is} 17. Ng1 $11) 17... Be7 {[%emt 0:01:05]} 18. Kf1 {[%emt 0:01:14]} h5 {[%emt 0:06:57]} (18... Kb7 $15) 19. Ng5 $1 {[%emt 0:03:47]} Na4 {[%emt 0:02:35]} 20. f4 {[%emt 0:04:21]} Kb7 {[%emt 0:01:45]} 21. Kg2 {[%emt 0:01:35]} Ra8 {[%emt 0:00:31]} 22. Ra1 {[%emt 0:00:35]} Rhc8 {[%emt 0:00:35]} 23. Ndf3 {[%emt 0:02:28]} Qg8 {[%emt 0:01:15]} 24. Qd2 {[%emt 0:01:14]} axb4 {[%emt 0:07:09]} (24... Nxb4 $11 25. axb4 axb4) 25. axb4 {[%emt 0:00:59]} Nxb4 {[%emt 0:00:41]} 26. Ba3 {[%emt 0:01:23]} Nc6 {[%emt 0:01:20]} 27. Bxe7 {[%emt 0:00:14]} Nxe7 {[%emt 0:00:04]} 28. Rhb1 {[%emt 0:00:09] [#]} (28. Ne1 $11) 28... Ra5 {[%emt 0:02:14]} (28... Nb6 $1 $17 29. Rxa8 Rxa8) 29. Ra3 {[%emt 0:01:26]} Rca8 $1 {[%emt 0:00:15]} 30. Rba1 {[%emt 0:00:38]} Nc8 {[%emt 0:01:14]} (30... R8a6 $17 31. Bd1 Qa8) 31. Ne1 {[%emt 0:00:50]} Qg7 {[%emt 0:02:42]} 32. Nc2 {[%emt 0:00:25]} Qe7 {[%emt 0:00:23]} 33. Nb4 {[%emt 0:00:50]} Na7 {[%emt 0:00:58]} 34. Nf3 {[%emt 0:00:33]} Nc6 {[%emt 0:00:15]} 35. Nxc6 $1 {[%emt 0:00:22]} Bxc6 {[%emt 0:00:07]} 36. Ne1 {[%emt 0:00:21]} R8a7 {[%emt 0:08:14]} 37. Nc2 {[%emt 0:01:01]} Qd8 {[%emt 0:00:13]} 38. Nb4 {[%emt 0:01:24]} Qa8 {[%emt 0:01:12]} 39. Bd1 {[%emt 0:01:12]} Nb6 {[%emt 0:05:35]} 40. Rxa5 {[%emt 0:00:09]} Rxa5 {[%emt 0:00:04]} 41. Rxa5 {[%emt 0:00:10]} Qxa5 {[%emt 0:00:03]} 42. Qb2 {[%emt 0:00:11]} Nc8 {[%emt 0:03:04]} 43. Kh2 {[%emt 0:00:22]} Ne7 {[%emt 0:00:29]} 44. Kg2 {[%emt 0:00:13]} Kb6 {[%emt 0:04:14]} 45. Kh2 {[%emt 0:00:21]} Ng8 {[%emt 0:02:44]} 46. Kg2 {[%emt 0:00:08]} Nh6 {[%emt 0:00:13]} 47. Kf2 {[%emt 0:00:34]} Ng4+ {[%emt 0:00:12]} 48. Ke2 {[%emt 0:00:39]} Qa8 {[%emt 0:01:09]} 49. Bc2 {[%emt 0:00:15]} 1/2-1/2

[Event "Chinese Championship-B Women 2024"]
[Site "Liaocheng"]
[Date "2024.04.25"]
[Round "10.1"]
[White "Wang, Chuqiao"]
[Black "Yang, Yijing"]
[Result "1-0"]
[ECO "D24"]
[WhiteElo "2302"]
[BlackElo "2040"]
[Annotator "RC"]
[PlyCount "123"]
[EventDate "2024.04.24"]
[EventType "swiss"]
[EventCountry "CHN"]
[SourceTitle "playchess.com"]
[Source "ChessBase"]
[SourceQuality "1"]
[TimeControl "5400+30"]

1. d4 {[%emt 0:00:04]} d5 {[%emt 0:00:23]} 2. c4 {[%emt 0:00:05]} dxc4 {[%emt 0:00:05]} 3. Nf3 {[%emt 0:00:19]} Nf6 {[%emt 0:00:07]} 4. Nc3 {[%emt 0:00:33]} c5 {[%emt 0:05:30]} 5. d5 {[%emt 0:08:15]} Qa5 {[%emt 0:08:23]} 6. Bd2 {[%emt 0:12:43]} b5 {[%emt 0:02:04]} 7. e4 {[%emt 0:02:29]} b4 {[%emt 0:14:30]} 8. e5 {[%emt 0:00:07]} Ng4 {[%emt 0:00:07]} 9. Qa4+ {[%emt 0:04:52]} Qxa4 10. Nxa4 {[%emt 0:00:03]} e6 {[%emt 0:11:30]} 11. Bxc4 {[%emt 0:03:39]} Bd7 {[%emt 0:00:18]} 12. h3 {[%emt 0:02:11]} Bxa4 {[%emt 0:06:18]} 13. hxg4 {[%emt 0:00:05]} exd5 {[%emt 0:00:06]} 14. Bxd5 {[%emt 0:00:02]} Bc6 15. Bxc6+ {[%emt 0:05:03]} Nxc6 {[%emt 0:00:18]} 16. Bg5 {[%emt 0:01:10]} Nd8 {[%emt 0:13:13]} 17. O-O-O {[%emt 0:02:11]} Ne6 {[%emt 0:02:18]} 18. Be3 {[%emt 0:02:05]} Rd8 {[%emt 0:03:34]} 19. Rxd8+ {[%emt 0:09:04]} Kxd8 {[%emt 0:06:38]} 20. Rd1+ {[%emt 0:01:16]} Ke8 {[%emt 0:00:10]} 21. Nd2 {[%emt 0:03:13]} h5 {[%emt 0:01:20]} 22. Rh1 {[%emt 0:06:21]} g6 {[%emt 0:00:47]} 23. Ne4 {[%emt 0:02:46]} Bg7 {[%emt 0:02:24]} 24. gxh5 {[%emt 0:02:59]} Bxe5 {[%emt 0:02:20]} 25. Nxc5 {[%emt 0:00:15]} gxh5 {[%emt 0:00:33]} 26. Nxe6 {[%emt 0:01:01]} fxe6 {[%emt 0:00:05]} 27. Bxa7 {[%emt 0:00:06]} Kd7 {[%emt 0:00:24]} 28. Rh4 {[%emt 0:03:25]} Bd6 {[%emt 0:00:40]} 29. Be3 {[%emt 0:00:52]} Be7 {[%emt 0:00:48]} 30. Re4 {[%emt 0:06:46]} h4 {[%emt 0:01:26]} 31. Rg4 {[%emt 0:00:11]} h3 {[%emt 0:00:41]} 32. gxh3 {[%emt 0:00:03]} Rxh3 {[%emt 0:00:04]} 33. Kc2 {[%emt 0:00:10]} Kc6 {[%emt 0:01:18]} 34. Kd3 {[%emt 0:01:20]} Kd5 {[%emt 0:02:07]} 35. Rd4+ {[%emt 0:01:12]} Ke5 {[%emt 0:00:07]} 36. Kc4 {[%emt 0:00:42]} Rh8 {[%emt 0:00:51]} 37. Rd7 {[%emt 0:00:34]} Rc8+ {[%emt 0:00:07]} 38. Kb3 {[%emt 0:00:08]} Bf8 {[%emt 0:00:14]} 39. Rf7 {[%emt 0:02:07]} Kd5 {[%emt 0:00:38]} 40. Rb7 {[%emt 0:02:32]} Bd6 {[%emt 0:00:30]} 41. Rb6 {[%emt 0:02:17]} Rf8 {[%emt 0:00:43]} 42. Rb5+ {[%emt 0:01:15]} Kc6 {[%emt 0:00:09]} 43. Ra5 {[%emt 0:01:26]} Rh8 {[%emt 0:00:49]} 44. a4 {[%emt 0:01:20]} bxa3 {[%emt 0:00:17]} 45. bxa3 {[%emt 0:00:02]} Rh4 {[%emt 0:01:08]} 46. Ra6+ {[%emt 0:00:55]} Kd5 {[%emt 0:00:09]} 47. Rb6 {[%emt 0:00:49]} Rh1 {[%emt 0:00:33]} 48. Ka2 {[%emt 0:03:05]} Rh4 {[%emt 0:00:55]} 49. Ra6 {[%emt 0:02:28]} Bf4 {[%emt 0:04:29]} 50. Ra5+ {[%emt 0:01:03]} Kd6 {[%emt 0:01:42]} 51. Ra4 {[%emt 0:01:37]} e5 {[%emt 0:00:09]} 52. Bxf4 {[%emt 0:00:45]} exf4 {[%emt 0:00:01]} 53. Re4 {[%emt 0:00:13]} Kd5 {[%emt 0:04:40]} 54. f3 {[%emt 0:00:08]} Kc5 {[%emt 0:00:44]} 55. Kb3 {[%emt 0:00:05]} Kb5 {[%emt 0:00:06]} 56. Rc4 {[%emt 0:00:12]} Ka5 {[%emt 0:00:22]} 57. Kc3 {[%emt 0:00:22]} Kb5 {[%emt 0:00:25]} 58. Kd3 {[%emt 0:00:31]} Ka5 {[%emt 0:00:29]} 59. a4 {[%emt 0:00:12]} Ka6 {[%emt 0:00:54]} 60. Rd4 {[%emt 0:00:43]} Kb6 {[%emt 0:00:31]} 61. Ke4 {[%emt 0:00:11]} Ka5 {[%emt 0:00:09]} 62. Kf5 {[%emt 0:00:18]} 1-0

[Event "Chinese Championship-B Women 2024"]
[Site "Liaocheng"]
[Date "2024.04.25"]
[Round "10.2"]
[White "Jiang, Tianyu"]
[Black "Zhao, Yunqing"]
[Result "0-1"]
[ECO "B82"]
[WhiteElo "1929"]
[BlackElo "1965"]
[Annotator "TA"]
[PlyCount "112"]
[EventDate "2024.04.24"]
[EventType "swiss"]
[EventCountry "CHN"]
[SourceTitle "playchess.com"]
[Source "ChessBase"]
[SourceQuality "1"]
[TimeControl "5400+30"]

{[%evp 17,112,33,31,31,26,27,10,32,32,14,0,4,22,31,39,0,35,23,93,23,27,0,0,-329,-339,-317,-312,-309,-252,-475,-489,-506,-500,-537,-531,-792,-766,-794,-508,-705,-709,-702,-686,-644,-547,-556,-535,-819,-820,-956,-938,-987,-738,-700,-481,-468,-479,-457,-447,-457,-406,-456,-330,-475,-478,-470,-491,-577,-564,-586,-591,-696,-671,-692,-692,-610,-664,-667,-663,-5631,-5739,-29948,-2965,-2887,-2675,-29964,-29971,-29975,-29976,-29976,-29977,-29977,-29978,-29977,-29976,-29991,-29992]} 1. e4 {[%emt 0:00:19]} c5 {[%emt 0:00:08]} 2. Nf3 {[%emt 0:00:05]} e6 {[%emt 0:00:14]} 3. d4 {[%emt 0:00:50]} cxd4 {[%emt 0:00:06]} 4. Nxd4 {[%emt 0:00:05]} Nc6 {[%emt 0:00:06]} 5. Nc3 {[%emt 0:00:13]} Qc7 {[%emt 0:00:13]} 6. Be3 {[%emt 0:01:06]} a6 {[%emt 0:00:16]} 7. a3 {[%emt 0:01:12]} Nf6 {[%emt 0:00:44]} 8. f4 {[%emt 0:01:22]} d6 {[%emt 0:09:12][%cal Bd7d6,Bd6d5][%mdl 32]} 9. Qf3 {[%emt 0:01:32]} Be7 {[%emt 0:08:53]} 10. O-O-O {[%emt 0:02:26]} O-O {[%emt 0:08:21]} 11. Nxc6 {[%emt 0:02:36]} bxc6 {[%emt 0:03:19]} 12. g4 {[%emt 0:01:30][%cal Bg2g4,Bg4g5][%mdl 32] The position is equal.} Nd7 {[%emt 0:07:21]} 13. g5 {[%emt 0:06:52]} d5 {[%emt 0:09:19]} 14. h4 {[%emt 0:09:33]} Rb8 {[%emt 0:09:47]} 15. h5 {[%emt 0:11:29]} Qa5 {[%emt 0:03:54][%cal Ob8b2]} 16. Bf2 {[%emt 0:15:22]} f6 {[%emt 0:12:05]} 17. exd5 {[%emt 0:29:08]} exd5 {[%emt 0:07:24]} (17... cxd5 $11 {keeps the balance.} 18. h6 g6 (18... fxg5 19. Qh3 $14)) 18. h6 {[%emt 0:04:32]} (18. Qe3 $16 Rxb2 19. Nxd5 (19. Kxb2 $2 Bxa3+ 20. Ka1 Bc1+ 21. Na2 Bxe3 $19) (19. Qxe7 $2 Qxc3 20. Bd3 Ra2 $19) 19... Bxa3 20. Ne7+ Bxe7 (20... Kh8 $2 21. Ng6+ Kg8 22. Bc4+ $18) 21. Kxb2) 18... g6 $1 $11 {[%emt 0:04:58][%cal Ob8b2] Threatens to win with ...Rxb2!} 19. Qe3 {[%emt 0:01:58]} Rf7 {[%emt 0:02:35][%cal Ob8b2] Hoping for ...Rxb2!} 20. Bh3 $2 {[%emt 0:05:33][%mdl 8192] [#] Black converts the advantage convincingly.} (20. f5 $1 $11) 20... Rxb2 $3 $19 {[%emt 0:07:58][%mdl 512]} 21. Nb1 {[%emt 0:02:40]} Qb5 {[%emt 0:01:08]} 22. Nc3 {[%emt 0:00:24]} Qb8 {[%emt 0:01:17]} 23. Be6 $2 {[%emt 0:00:29]} (23. gxf6 Bxa3 24. Qe8+ Nf8 25. Bxc8 Qxf4+ 26. Qe3 (26. Be3 $2 Rb8+ 27. Kd2 Qc7 $19) 26... Qxf6 27. Rhf1 (27. Ne4 $2 Rb3+ 28. Kd2 Bb4+ 29. c3 dxe4 $19) 27... Rb8+ 28. Kd2 Rxc8 29. Qd3) 23... Bxa3 {[%emt 0:01:25]} 24. Bxf7+ {[%emt 0:00:05]} Kxf7 {[%emt 0:00:04]} 25. Rde1 {[%emt 0:01:05][%csl Ge1][%cal Re3e8]} Nf8 {[%emt 0:01:37][%cal Od5d4]} 26. Kd2 {[%emt 0:00:21]} Bf5 {[%emt 0:00:17]} 27. Rc1 {[%emt 0:00:33]} Qb3 {[%emt 0:00:45][%cal Rb2c2] White is weak on the light squares} 28. Qd4 {[%emt 0:00:24]} Rxc2+ {[%emt 0:00:24]} 29. Rxc2 {[%emt 0:00:32]} Qxc2+ {[%emt 0:00:04]} 30. Ke1 {[%emt 0:00:33]} Nd7 {[%emt 0:00:55] White must now prevent ...Bb2.} 31. Qd2 {[%emt 0:00:38]} Qb3 {[%emt 0:00:29] ...Bb4 would now be deadly.} 32. Kf1 {[%emt 0:00:26]} Bb4 {[%emt 0:00:24]} 33. Be1 {[%emt 0:00:09]} Qc4+ {[%emt 0:00:18]} 34. Kf2 {[%emt 0:00:57]} Bc5+ {[%emt 0:00:57]} 35. Kg2 {[%emt 0:00:29]} Be4+ {[%emt 0:00:23]} 36. Nxe4 {[%emt 0:00:14]} Qxe4+ {[%emt 0:00:05]} 37. Kh2 {[%emt 0:00:02]} Be3 {[%emt 0:00:11]} 38. Qg2 {[%emt 0:01:06]} Bxf4+ {[%emt 0:00:13]} ({Less strong is} 38... Qxf4+ 39. Bg3 Qxg5 40. Qe2 $19) 39. Bg3 {[%emt 0:00:27]} Qxg2+ {[%emt 0:01:23]} 40. Kxg2 {[%emt 0:00:03]} Bxg5 {[%emt 0:00:31][%mdl 4096] Endgame. KRB-KBN} 41. Ra1 {[%emt 0:01:05]} Bxh6 {[%emt 0:00:40]} 42. Rxa6 {[%emt 0:00:02]} Ne5 {[%emt 0:00:33]} 43. Ra7+ {[%emt 0:01:01]} Ke6 {[%emt 0:00:24]} 44. Rxh7 {[%emt 0:00:05]} Bf8 {[%emt 0:00:11]} 45. Rh8 {[%emt 0:00:26]} Bd6 {[%emt 0:00:34]} 46. Re8+ {[%emt 0:00:55]} Kd7 {[%emt 0:00:19]} 47. Rg8 {[%emt 0:00:18]} g5 {[%emt 0:00:16]} 48. Bxe5 {[%emt 0:00:44]} Bxe5 {[%emt 0:00:09] KR-KB} 49. Kf3 {[%emt 0:00:04]} Kd6 {[%emt 0:00:21]} (49... c5 $142 50. Ra8 c4 51. Ra6 Kc7 52. Ke3 g4 53. Kd2 g3 54. Ke2 Kb7 55. Ra4 Kc6 56. Ke1 Kb5 57. Ra2 d4 58. Kd2 g2 59. Rb2+ Kc6 60. Rb1 Bh2 61. Re1 g1=Q (61... g1=B $2 62. Re6+ Kd5 63. Re1 $19) 62. Rxg1 Bxg1 63. Ke1 d3 64. Kd2 Kb5 65. Kd1 c3 66. Ke1 c2 67. Kd2 Kc4 68. Kc1 Be3+ 69. Kb2 c1=Q+ (69... c1=B+ {gets mated.} 70. Kb1 Kb3 71. Ka1 d2 72. Kb1 d1=Q 73. Ka1 Bcd2#) 70. Ka2 Qc2+ 71. Ka3 Bc5#) 50. Ke3 {[%emt 0:00:45]} c5 {[%emt 0:00:27] ( -> ...Kc6)} 51. Ra8 {[%emt 0:00:25]} Kc6 {[%emt 0:00:36] Black mates.} 52. Rd8 {[%emt 0:00:38]} g4 {[%emt 0:00:25]} 53. Rg8 {[%emt 0:00:36]} g3 {[%emt 0:00:08]} 54. Rd8 {[%emt 0:00:27]} c4 {[%emt 0:01:05]} 55. Rc8+ {[%emt 0:00:32]} Kb5 {[%emt 0:00:09]} 56. Rb8+ {[%emt 0:00:05]} Bxb8 {[%emt 0:00:08] Weighted Error Value: White=0.67/Black=0.34.  Loses game:     	White=1     	---        Mistake:       	White=2     	Black=1      Inaccurate:     	White=4     	---        OK:         	White=11    	Black=14     Best:        	White=3     	Black=4      Strong:       	---       	Black=1      Brilliant:      	---       	Black=1} 0-1